fUST/lending_fUST_20250116
["ID","MTS","AMOUNT","RATE_DAILY","PERIOD"]
[349202396,1737033051075,-4662.90547063,0.00022057,2]
[349202397,1737033051085,-5000.0,0.00022077,2]
[349202398,1737033051097,-5000.0,0.00022077,2]
[349202399,1737033051107,-5000.0,0.00022077,2]
[349202400,1737033051117,-5000.0,0.00022077,2]
[349202401,1737033051126,-5000.0,0.00022077,2]
[349202402,1737033051135,-8696.6834393,0.000221,2]
[349202403,1737033051145,-823.0,0.00022148,2]
[349202404,1737033051154,-150.31014834,0.00022154,2]
[349202405,1737033051164,-500.0,0.00022154,2]
[349202406,1737033051174,-715.31845281,0.00022154,2]
[349202407,1737033051183,-756.8374687,0.00022154,2]
[349202408,1737033051193,-524.06059139,0.00022154,2]
[349202409,1737033051203,-500.0,0.00022154,2]
[349202410,1737033051213,-500.0,0.00022154,2]
[349202411,1737033051229,-623.75911004,0.00022154,2]
[349202412,1737033051243,-520.97125806,0.00022154,2]
[349202413,1737033051253,-5408.66585599,0.00022176,3]
[349202414,1737033051264,-832.53,0.00022191,3]
[349202415,1737033051275,-14119.6,0.00022191,3]
[349202416,1737033051286,-1869.13,0.00022191,3]
[349202417,1737033051296,-2291.8,0.00022191,3]
[349202418,1737033051306,-1195.93,0.00022191,2]
[349202419,1737033051319,-736.29,0.00022191,3]
[349202420,1737033051329,-1626.84,0.00022191,3]
[349202421,1737033051339,-5668.63,0.00022191,3]
[349202422,1737033051352,-609.19,0.00022191,3]
[349202423,1737033051362,-7351.8,0.00022191,3]
[349202424,1737033051371,-1002.68,0.00022191,3]
[349202425,1737033051381,-616.31,0.00022191,3]
[349202426,1737033051390,-500.0,0.00022191,3]
[349202427,1737033051400,-1090.54,0.00022191,3]
[349202428,1737033051410,-3894.3,0.00022191,3]
[349202429,1737033051419,-838.65,0.00022191,3]
[349202430,1737033051428,-1085.39,0.00022191,3]
[349202431,1737033051438,-600.16,0.00022191,3]
[349202432,1737033051447,-2740.8,0.00022191,3]
[349202433,1737033051457,-905.83,0.00022191,3]
[349202434,1737033051467,-1525.85,0.00022191,3]
[349202435,1737033051477,-1500.0,0.00022245,2]
[349202436,1737033051487,-1500.0,0.00022245,2]
[349202437,1737033051498,-1500.0,0.00022245,2]
[349202438,1737033051508,-29576.13977646,0.00022284,59]
[349202439,1737033051518,-832.75727002,0.00022328,3]
[349202440,1737033051528,-14119.717,0.00022328,3]
[349202441,1737033051538,-1869.29948177,0.00022328,3]
[349202442,1737033051547,-2291.88562172,0.00022328,3]
[349202443,1737033051557,-1195.97607459,0.00022328,2]
[349202444,1737033051567,-736.48364928,0.00022328,3]
[349202445,1737033051576,-1627.05582042,0.00022328,3]
[349202446,1737033051587,-5668.6373223,0.00022328,3]
[349202447,1737033051600,-609.36585086,0.00022328,3]
[349202448,1737033051610,-7351.84315879,0.00022328,3]
[349202449,1737033051619,-1002.78075537,0.00022328,3]
[349202450,1737033051629,-616.31733802,0.00022328,3]
[349202451,1737033051638,-318.36728631,0.00022328,3]
[349202452,1737033051647,-1090.66,0.00022328,3]
[349202453,1737033051658,-3894.45210599,0.00022328,3]
[349202454,1737033051667,-838.69148438,0.00022328,3]
[349202455,1737033051677,-1085.39470793,0.00022328,3]
[349202456,1737033051687,-600.19909557,0.00022328,3]
[349202457,1737033051696,-2740.89,0.00022328,3]
[349202458,1737033051707,-905.83756343,0.00022328,3]
[349202459,1737033051717,-1526.04131245,0.00022328,3]
[349202460,1737033051726,-5408.66585599,0.00022348,3]
[349202461,1737033051737,-1500.0,0.000224,2]
[349202462,1737033051747,-510.0,0.000224,10]
[349202463,1737033051757,-500.0,0.00022428,2]
[349202464,1737033051767,-200.14,0.00022428,2]
[349202465,1737033051777,-500.0,0.00022428,2]
[349202466,1737033051786,-500.0,0.00022428,2]
[349202467,1737033051796,-281.19147802,0.000225,2]
[349202468,1737033051805,-5408.66585599,0.00022521,3]
[349202469,1737033051815,-33809.6617361,0.0002258,60]
[349202470,1737033051824,-4662.90547063,0.000226,2]
[349202471,1737033051834,-5408.66585599,0.00022693,3]
[349202472,1737033051848,-500.0,0.00022702,2]
[349202473,1737033051858,-150.16247437,0.00022702,2]
[349202474,1737033051867,-500.0,0.00022702,2]
[349202475,1737033051877,-500.0,0.00022702,2]
[349202476,1737033051887,-5000.0,0.00022722,2]
[349202477,1737033051897,-7326.01824769,0.00022722,2]
[349202478,1737033051908,-8954.32541113,0.00022746,2]
[349202479,1737033051918,-5000.0,0.00022746,2]
[349202480,1737033051928,-6325.23195421,0.00022781,2]
[349202481,1737033051939,-5000.0,0.00022781,2]
[349202482,1737033051949,-5408.66585599,0.00022866,3]
[349202483,1737033051960,-901.67006031,0.0002287,2]
[349202484,1737033051990,-184560.80868232,0.000229,7]
[349202485,1737033052211,-740.59677093,0.000229,2]
[349202486,1737033052223,-1500.0,0.00022964,2]
[349202487,1737033052233,-500.0,0.00022976,2]
[349202488,1737033052243,-161.28938809,0.00022976,2]
[349202489,1737033052253,-261.17233158,0.00022976,2]
[349202490,1737033052263,-152.18950846,0.00022976,2]
[349202491,1737033052273,-500.0,0.00022976,2]
[349202492,1737033052282,-500.0,0.00022976,2]
[349202493,1737033052291,-2200.0,0.00022976,2]
[349202494,1737033052301,-7438.69753278,0.00023,2]
[349202495,1737033052312,-7593.30944906,0.00023,2]
[349202496,1737033052323,-594.88171214,0.00023,2]
[349202497,1737033052332,-2927.06438146,0.00023,7]
[349202498,1737033052342,-905.2,0.00023,14]
[349202499,1737033052353,-1000.0,0.00023,23]
[349202500,1737033052363,-3884.3043202,0.00023,7]
[349202501,1737033052373,-27348.96078124,0.00023,3]
[349202502,1737033052382,-1000.0,0.00023,5]
[349202503,1737033052392,-9893.37,0.00023,2]
[349202504,1737033052402,-2263.99,0.00023,14]
[349202505,1737033052411,-7910.87,0.00023,14]
[349202506,1737033052420,-2000.0,0.00023,2]
[349202507,1737033052430,-316.56173953,0.00023,2]
[349202508,1737033052440,-7438.69753278,0.00023,3]
[349202509,1737033052449,-5408.66585599,0.00023038,3]
[349202510,1737033052460,-458050.63872102,0.000231,2]
[349202511,1737033052581,-500.0,0.00019178,2]
[349202512,1737033052591,-151.0,0.00019178,2]
[349202513,1737033052604,-152.152907,0.00019178,2]
[349202514,1737033052613,-151.0,0.00019315,2]
[349202515,1737033052623,-623.57,0.00019863,3]
[349202516,1737033052633,-623.57,0.0002,3]
[349202517,1737033052642,-623.57,0.00020136,3]
[349202518,1737033052652,-16869.53559684,0.000231,2]
[349202519,1737033052667,-1047.95741027,0.000231,2]
[349202520,1737033052973,-500.0,0.00019178,2]
[349202521,1737033052983,-151.0,0.00019178,2]
[349202522,1737033052993,-151.0,0.00019178,2]
[349202523,1737033053002,-500.0,0.00019315,3]
[349202524,1737033053012,-151.0,0.00019315,2]
[349202525,1737033053021,-151.0,0.00019452,2]
[349202526,1737033053031,-427.49,0.00019452,3]
[349202527,1737033053041,-151.0,0.00019452,2]
[349202528,1737033053051,-395.0,0.0001951,2]
[349202529,1737033053060,-151.0,0.00019589,2]
[349202530,1737033053069,-279.05699,0.00019589,2]
[349202531,1737033053079,-151.0,0.00019726,2]
[349202532,1737033053088,-151.0,0.00019981,2]
[349202533,1737033053191,-151.0,0.00020136,2]
[349202534,1737033053202,-623.57,0.00020273,3]
[349202535,1737033053212,-151.0,0.00020273,2]
[349202536,1737033053222,-623.57,0.0002041,3]
[349202537,1737033053231,-151.0,0.0002041,2]
[349202538,1737033053241,-623.57,0.00020547,3]
[349202539,1737033053250,-151.0,0.00020547,2]
[349202540,1737033053260,-623.57,0.00020684,3]
[349202541,1737033053269,-623.57,0.00020821,3]
[349202542,1737033053278,-623.57,0.00020958,3]
[349202543,1737033053287,-623.57,0.00021095,3]
[349202544,1737033053297,-623.57,0.00021232,3]
[349202545,1737033053307,-623.57,0.00021369,3]
[349202546,1737033053321,-623.57,0.00021506,3]
[349202547,1737033053330,-1000.0,0.000216,2]
[349202548,1737033053340,-623.57,0.00021643,3]
[349202549,1737033053351,-623.57,0.0002178,3]
[349202550,1737033053361,-623.57,0.00021917,3]
[349202551,1737033053371,-623.57,0.00022054,3]
[349202552,1737033053381,-623.57,0.00022191,3]
[349202553,1737033053392,-623.78966034,0.00022328,3]
[349202554,1737033053402,-395.0,0.0002251,2]
[349202555,1737033053412,-655.82130697,0.00022763,2]
[349202556,1737033053422,-48945.39264931,0.000231,2]
[349202557,1737033053542,-500.0,0.00019178,2]
[349202558,1737033053552,-1000.0,0.00021603,2]
[349202559,1737033053562,-255.34657986,0.00021657,2]
[349202560,1737033053572,-1000.0,0.0002166,2]
[349202561,1737033053582,-1000.0,0.00021673,2]
[349202562,1737033053592,-2620.3031506,0.000231,2]
[349202563,1737033342968,1000.0,0.00025,120]
[349202566,1737033849231,163.827493,0.00013973,2]
[349202749,1737034237847,-2079.51976318,0.00016285,2]
[349202750,1737034237856,-347.22680587,0.00016449,2]
[349202752,1737034237909,-1732.29295731,0.00016449,2]
[349202754,1737034237919,-2985.5583734,0.00017588,2]
[349202756,1737034237928,-169.378876,0.00017642,2]
[349202758,1737034237938,-511.16259974,0.00018599,2]
[349202760,1737034237948,-205.86861881,0.000186,2]
[349202762,1737034237957,-500.0,0.00018673,2]
[349202764,1737034237966,-300.0,0.00018699,2]
[349202765,1737034237976,-7354.05005704,0.00018699,2]
[349202766,1737034237992,-8704.29994221,0.00018699,2]
[349202770,1737034238035,-32609.65000075,0.00018699,2]
[349202771,1737034238046,-53768.94485735,0.000187,7]
[349202773,1737034238056,-500.0,0.00018791,2]
[349202774,1737034238066,-500.0,0.00018791,2]
[349202775,1737034238076,-500.0,0.00018791,2]
[349202776,1737034238086,-500.0,0.00018791,2]
[349202777,1737034238096,-500.0,0.00018791,2]
[349202779,1737034238106,-500.0,0.00018791,2]
[349202780,1737034238116,-500.0,0.00018791,2]
[349202781,1737034238125,-500.0,0.00018791,2]
[349202783,1737034238134,-458.95430947,0.00018791,2]
[349202784,1737034238144,-197.51313085,0.00018791,2]
[349202786,1737034238153,-500.0,0.00018791,2]
[349202788,1737034238162,-500.0,0.00018791,2]
[349202790,1737034238173,-535.25634518,0.00018791,2]
[349202793,1737034238183,-619.61569165,0.00018791,2]
[349202796,1737034238193,-500.0,0.00018791,2]
[349202799,1737034238202,-500.0,0.00018791,2]
[349202802,1737034238212,-500.0,0.00018791,2]
[349202804,1737034238221,-500.0,0.00018791,2]
[349202806,1737034238230,-414.49979318,0.00018791,2]
[349202808,1737034238242,-500.0,0.00018791,2]
[349202811,1737034238252,-202.39477593,0.00018791,2]
[349202813,1737034238261,-199.93837415,0.0001881,2]
[349202815,1737034238270,-1090.80547924,0.000189,2]
[349202817,1737034238279,-1000.0,0.00019,19]
[349202818,1737034238289,-1000.0,0.00019,2]
[349202819,1737034238298,-357.92271517,0.00019,2]
[349202821,1737034238307,-221.09690692,0.00019,2]
[349202822,1737034238316,-1090.80547913,0.00019072,2]
[349202823,1737034238325,-184.92910724,0.00019078,2]
[349202824,1737034238334,-504.05386802,0.00019178,2]
[349202825,1737034238343,-500.0,0.00019178,2]
[349202826,1737034238353,-500.0,0.00019178,2]
[349202827,1737034238364,-500.0,0.00019178,2]
[349202828,1737034238376,-500.0,0.00019178,2]
[349202830,1737034238387,-621.39,0.00019178,2]
[349202831,1737034238398,-500.0,0.00019178,2]
[349202833,1737034238408,-500.0,0.00019178,2]
[349202835,1737034238419,-500.0,0.00019178,2]
[349202837,1737034238429,-500.0,0.00019178,2]
[349202838,1737034238439,-500.0,0.00019178,2]
[349202840,1737034238449,-500.0,0.00019178,2]
[349202842,1737034238459,-500.0,0.00019178,2]
[349202843,1737034238469,-500.0,0.00019178,2]
[349202844,1737034238480,-500.0,0.00019178,2]
[349202845,1737034238493,-554.22,0.00019178,2]
[349202847,1737034238503,-500.0,0.00019178,2]
[349202849,1737034238513,-504.8663192,0.00019178,2]
[349202851,1737034238523,-302.87424932,0.00019178,2]
[349202853,1737034238533,-373.57050455,0.00019178,2]
[349202854,1737034238545,-500.0,0.00019178,2]
[349202856,1737034238556,-500.0,0.00019178,2]
[349202857,1737034238566,-500.0,0.00019178,2]
[349202858,1737034238576,-500.0,0.00019178,2]
[349202859,1737034238587,-408.42961022,0.00019178,2]
[349202860,1737034238598,-515.54149168,0.00019178,2]
[349202861,1737034238607,-500.0,0.00019178,2]
[349202862,1737034238617,-500.0,0.00019178,2]
[349202863,1737034238628,-500.0,0.00019178,2]
[349202864,1737034238638,-500.0,0.00019178,2]
[349202865,1737034238648,-500.0,0.00019178,2]
[349202866,1737034238659,-500.0,0.00019178,2]
[349202867,1737034238669,-215.04,0.00019178,2]
[349202868,1737034238680,-500.0,0.00019178,2]
[349202869,1737034238690,-500.0,0.00019178,2]
[349202870,1737034238701,-172.15246314,0.00019178,2]
[349202871,1737034238711,-500.0,0.00019178,2]
[349202872,1737034238726,-500.0,0.00019178,2]
[349202873,1737034238739,-500.0,0.00019178,2]
[349202874,1737034238750,-500.0,0.00019178,2]
[349202875,1737034238759,-511.38921058,0.00019178,2]
[349202876,1737034238771,-562.25,0.00019178,2]
[349202877,1737034238782,-500.0,0.00019178,2]
[349202878,1737034238794,-500.0,0.00019178,2]
[349202879,1737034238806,-500.0,0.00019178,2]
[349202880,1737034238818,-500.0,0.00019178,2]
[349202881,1737034238830,-500.0,0.00019178,2]
[349202882,1737034238840,-500.0,0.00019178,2]
[349202883,1737034238852,-500.0,0.00019178,2]
[349202884,1737034238864,-507.11,0.00019178,2]
[349202885,1737034238874,-500.0,0.00019178,2]
[349202886,1737034238883,-500.0,0.00019178,2]
[349202887,1737034238892,-500.0,0.00019178,2]
[349202888,1737034238902,-500.0,0.00019178,2]
[349202889,1737034238912,-1154.77,0.00019178,2]
[349202891,1737034238920,-500.0,0.00019178,2]
[349202892,1737034238928,-306.9,0.00019178,2]
[349202893,1737034238935,-552.43572194,0.00019178,2]
[349202894,1737034238947,-516.42,0.00019178,2]
[349202895,1737034238956,-500.0,0.00019178,2]
[349202896,1737034238968,-500.0,0.00019178,2]
[349202897,1737034238978,-500.0,0.00019178,2]
[349202898,1737034238991,-500.0,0.00019178,2]
[349202899,1737034239003,-500.0,0.00019178,2]
[349202900,1737034239013,-500.0,0.00019178,2]
[349202901,1737034239025,-607.33482725,0.00019178,2]
[349202902,1737034239037,-163.888221,0.00019178,2]
[349202903,1737034239049,-1000.0,0.00019221,2]
[349202904,1737034239060,-1090.80547913,0.00019245,2]
[349202905,1737034239071,-384.70416408,0.00019315,3]
[349202906,1737034239083,-500.0,0.00019315,3]
[349202907,1737034239094,-524.27,0.00019315,3]
[349202908,1737034239107,-500.0,0.00019315,3]
[349202909,1737034239118,-300.34,0.00019315,3]
[349202910,1737034239130,-185.47,0.00019315,3]
[349202911,1737034239140,-500.0,0.00019315,3]
[349202912,1737034239151,-305.97,0.00019315,3]
[349202913,1737034239161,-637.96515745,0.00019315,3]
[349202914,1737034239171,-500.0,0.00019315,3]
[349202915,1737034239181,-1154.77,0.00019315,3]
[349202916,1737034239191,-500.0,0.00019315,3]
[349202917,1737034239201,-500.0,0.00019315,3]
[349202918,1737034239211,-205.86861875,0.00019317,2]
[349202919,1737034239223,-1090.80547913,0.00019417,2]
[349202920,1737034239234,-500.0,0.00019452,3]
[349202921,1737034239247,-500.0,0.00019452,3]
[349202922,1737034239260,-500.0,0.00019452,3]
[349202923,1737034239271,-500.0,0.00019452,3]
[349202924,1737034239283,-1154.77,0.00019452,3]
[349202925,1737034239293,-500.0,0.00019452,3]
[349202926,1737034239303,-500.0,0.00019452,3]
[349202927,1737034239313,-361.522,0.00019523,2]
[349202928,1737034239323,-500.0,0.00019589,3]
[349202929,1737034239333,-550.11814351,0.00019589,3]
[349202930,1737034239343,-500.0,0.00019589,3]
[349202931,1737034239354,-1154.77,0.00019589,3]
[349202932,1737034239364,-370.71,0.00019589,3]
[349202933,1737034239375,-500.0,0.00019589,3]
[349202934,1737034239386,-1090.80547913,0.0001959,2]
[349202935,1737034239397,-250.76,0.00019726,3]
[349202936,1737034239407,-500.0,0.00019726,3]
[349202937,1737034239418,-1154.77,0.00019726,3]
[349202938,1737034239429,-500.0,0.00019726,3]
[349202939,1737034239440,-1090.80547913,0.00019762,2]
[349202940,1737034239450,-500.0,0.00019863,3]
[349202941,1737034239460,-1154.77,0.00019863,3]
[349202942,1737034239471,-588.11235966,0.00019863,3]
[349202943,1737034239481,-1069.8,0.000199,2]
[349202944,1737034239494,-1090.80547913,0.00019934,2]
[349202945,1737034239505,-500.0,0.00019999,2]
[349202946,1737034239515,-252.12198706,0.00019999,2]
[349202947,1737034239526,-1000.0,0.0002,43]
[349202948,1737034239536,-1000.0,0.0002,3]
[349202949,1737034239546,-2212.50961283,0.0002,2]
[349202950,1737034239556,-2043.5351742,0.0002,2]
[349202951,1737034239566,-208909.52645984,0.0002,5]
[349202952,1737034239577,-500.0,0.0002,3]
[349202953,1737034239587,-1154.77,0.0002,3]
[349202954,1737034239597,-205.86861875,0.00020034,2]
[349202955,1737034239607,-1090.80547913,0.00020107,2]
[349202956,1737034239618,-500.0,0.00020136,3]
[349202957,1737034239628,-1154.77,0.00020136,3]
[349202958,1737034239638,-1500.0,0.00020222,2]
[349202959,1737034239648,-500.0,0.00020273,3]
[349202960,1737034239658,-1154.77,0.00020273,3]
[349202961,1737034239669,-1090.80547913,0.00020279,2]
[349202962,1737034239679,-420.0,0.00020388,2]
[349202963,1737034239690,-500.0,0.0002041,3]
[349202964,1737034239700,-1154.77,0.0002041,3]
[349202965,1737034239711,-2070.0,0.00020422,2]
[349202966,1737034239726,-536.0,0.00020422,2]
[349202967,1737034239736,-2311.0,0.00020422,2]
[349202968,1737034239752,-395.0,0.00020422,2]
[349202969,1737034239766,-1090.80547913,0.00020452,2]
[349202970,1737034239778,-1200.0,0.00020529,2]
[349202971,1737034239789,-500.0,0.00020547,3]
[349202972,1737034239801,-500.0,0.00020547,3]
[349202973,1737034239812,-1154.77,0.00020547,3]
[349202974,1737034239823,-1090.80547913,0.00020624,2]
[349202975,1737034239833,-500.0,0.00020684,3]
[349202976,1737034239844,-1154.77,0.00020684,3]
[349202977,1737034239855,-205.86861875,0.00020751,2]
[349202978,1737034239866,-340.75366526,0.0002079,2]
[349202979,1737034239877,-1090.80547913,0.00020797,2]
[349202980,1737034239888,-500.0,0.00020821,3]
[349202981,1737034239899,-1154.77,0.00020821,3]
[349202982,1737034239909,-500.0,0.00020958,3]
[349202983,1737034239920,-1154.77,0.00020958,3]
[349202984,1737034240077,-1090.80547913,0.00020969,2]
[349202986,1737034240088,-1000.0,0.00021,44]
[349202988,1737034240098,-1000.0,0.00021,4]
[349202989,1737034240108,-10000.0,0.00021,5]
[349202990,1737034240118,-3082.40772326,0.00021,2]
[349202991,1737034240127,-3156.94273021,0.00021,2]
[349202992,1737034240137,-500.0,0.00021095,3]
[349202993,1737034240147,-1154.77,0.00021095,3]
[349202994,1737034240156,-1090.80547913,0.00021141,2]
[349202995,1737034240166,-163.827493,0.00021209,2]
[349202996,1737034240176,-500.0,0.00021232,3]
[349202997,1737034240186,-1154.77,0.00021232,3]
[349202999,1737034240197,-1090.80547913,0.00021314,2]
[349203000,1737034240206,-500.0,0.00021369,3]
[349203001,1737034240216,-1154.77,0.00021369,3]
[349203002,1737034240226,-205.86861875,0.00021468,2]
[349203003,1737034240236,-1090.80547913,0.00021486,2]
[349203004,1737034240253,-500.0,0.00021506,3]
[349203005,1737034240263,-1154.77,0.00021506,3]
[349203006,1737034240273,-2000.0,0.0002152,2]
[349203008,1737034240283,-151.0,0.00021602,6]
[349203009,1737034240293,-2500.0,0.00021625,2]
[349203010,1737034240302,-2500.0,0.00021634,2]
[349203011,1737034240312,-2500.0,0.00021643,2]
[349203012,1737034240322,-500.0,0.00021643,3]
[349203013,1737034240332,-1154.77,0.00021643,3]
[349203014,1737034240342,-1090.80547913,0.00021659,3]
[349203015,1737034240352,-500.0,0.0002178,3]
[349203016,1737034240363,-1154.77,0.0002178,3]
[349203017,1737034240374,-1090.80547913,0.00021831,3]
[349203020,1737034240384,-1800.0,0.0002188,2]
[349203021,1737034240393,-151.0,0.00021901,6]
[349203022,1737034240403,-499.0,0.00021917,2]
[349203023,1737034240413,-500.0,0.00021917,3]
[349203024,1737034240423,-1154.77,0.00021917,3]
[349203025,1737034240433,-425.955,0.0002194,2]
[349203026,1737034240443,-152.04,0.00021956,2]
[349203027,1737034240453,-40642.70115273,0.0002197,2]
[349203028,1737034240463,-1000.0,0.00022,45]
[349203029,1737034240473,-1000.0,0.00022,5]
[349203030,1737034240484,-1090.80547913,0.00022003,3]
[349203031,1737034240500,-500.0,0.00022054,3]
[349203032,1737034240510,-1154.77,0.00022054,3]
[349203033,1737034240520,-1090.80547913,0.00022176,3]
[349203034,1737034240531,-205.86861875,0.00022185,2]
[349203035,1737034240541,-179.0,0.00022188,2]
[349203037,1737034240552,-168.0,0.00022188,2]
[349203038,1737034240562,-168.0,0.00022188,2]
[349203039,1737034240572,-168.0,0.00022188,2]
[349203040,1737034240583,-168.0,0.00022188,2]
[349203041,1737034240593,-168.0,0.00022188,2]
[349203042,1737034240603,-168.0,0.00022188,2]
[349203044,1737034240612,-168.0,0.00022188,2]
[349203045,1737034240621,-171.0,0.00022188,2]
[349203046,1737034240631,-162.0,0.00022188,2]
[349203047,1737034240642,-162.0,0.00022188,2]
[349203048,1737034240652,-162.0,0.00022188,2]
[349203049,1737034240661,-162.0,0.00022188,2]
[349203050,1737034240671,-162.0,0.00022188,2]
[349203052,1737034240682,-162.0,0.00022188,2]
[349203054,1737034240692,-162.0,0.00022188,2]
[349203056,1737034240701,-162.0,0.00022188,2]
[349203058,1737034240710,-162.37,0.00022188,2]
[349203060,1737034240721,-555.6547,0.00022191,3]
[349203062,1737034240731,-1154.77,0.00022191,3]
[349203064,1737034240747,-151.0,0.00022201,6]
[349203066,1737034240756,-587.0,0.0002223,2]
[349203068,1737034240766,-1154.81469863,0.00022328,3]
[349203070,1737034240776,-1090.80547913,0.00022348,3]
[349203072,1737034240787,-249.27,0.00022387,2]
[349203074,1737034240798,-151.0,0.00022501,6]
[349203076,1737034240811,-1090.80547913,0.00022521,3]
[349203078,1737034240821,-1090.80547913,0.00022693,3]
[349203080,1737034240830,-151.0,0.000228,7]
[349203082,1737034240841,-9968.18519472,0.00022811,2]
[349203084,1737034240851,-353.5154054,0.00022822,2]
[349203086,1737034240861,-353.5154054,0.00022822,2]
[349203088,1737034240871,-353.5154054,0.00022822,2]
[349203090,1737034240882,-352.267709,0.00022822,2]
[349203093,1737034240893,-1090.80547913,0.00022866,3]
[349203094,1737034240903,-154.0823859,0.00022868,2]
[349203097,1737034240912,-1041.49148397,0.000229,2]
[349203098,1737034240922,-205.86861875,0.00022902,2]
[349203100,1737034240932,-296.1753502,0.00022959,2]
[349203103,1737034240942,-490.8770948,0.00022959,2]
[349203104,1737034240953,-431.0251471,0.00022959,2]
[349203106,1737034240962,-1800.0,0.00022976,2]
[349203108,1737034240972,-7438.69753278,0.00023,2]
[349203110,1737034240983,-1000.0,0.00023,46]
[349203112,1737034240996,-1000.0,0.00023,6]
[349203114,1737034241006,-200.31549184,0.00023,2]
[349203116,1737034241015,-10998.73602549,0.00023,3]
[349203118,1737034241025,-1325.45564783,0.00023,2]
[349203120,1737034241034,-7438.69753278,0.00023,3]
[349203122,1737034241043,-1090.80547913,0.00023038,3]
[349203124,1737034241052,-726.65588986,0.00023056,2]
[349203126,1737034241062,-1325.45564781,0.00023069,2]
[349203128,1737034241072,-500.70905807,0.00023073,2]
[349203130,1737034241081,-500.0,0.00023073,2]
[349203132,1737034241091,-500.0,0.00023073,2]
[349203134,1737034241102,-715513.61278255,0.000231,2]
[349203136,1737034241116,-22417.08751433,0.000231,2]
[349203137,1737034241128,-1982.32949917,0.000231,2]
[349203140,1737034241157,-4229.11525528,0.000231,2]
[349203142,1737034241169,-1722.3396068,0.000231,2]
[349203143,1737034241181,-1497.359927,0.000231,2]
[349203144,1737034241193,-12557.88734145,0.000231,2]
[349203145,1737034241205,-337.4656786,0.000231,2]
[349203147,1737034241217,-50468.16797956,0.000231,2]
[349203151,1737034241266,-16207.72925544,0.000231,2]
[349203171,1737034243905,-8006.0363283,0.000231,2]
[349203205,1737034246848,-3330.9,0.000231,2]
[349203208,1737034409128,479.11,0.0001506,2]
[349203210,1737034861137,163.827493,0.00013973,2]
[349203281,1737035431952,-164.24622742,0.00017152,2]
[349203283,1737035431962,-164.24622742,0.00017325,2]
[349203285,1737035431971,-6229.9344893,0.00018166,2]
[349203287,1737035431980,-169.378876,0.00018262,2]
[349203289,1737035431989,-277.357425,0.0001846,2]
[349203291,1737035431999,-747.0,0.000187,2]
[349203293,1737035432008,-300.0,0.000187,2]
[349203295,1737035432017,-5217.10078518,0.00018701,2]
[349203300,1737035432055,-5408.06536932,0.00018701,2]
[349203302,1737035432065,-250.0,0.00018776,2]
[349203304,1737035432074,-941.77443976,0.000189,2]
[349203306,1737035432084,-473.05925283,0.00019178,2]
[349203308,1737035432093,-561.67746808,0.00019178,2]
[349203310,1737035432103,-500.0,0.00019178,2]
[349203312,1737035432113,-500.0,0.00019178,2]
[349203314,1737035432122,-500.0,0.00019178,2]
[349203317,1737035432132,-500.0,0.00019178,2]
[349203319,1737035432141,-500.0,0.00019178,2]
[349203320,1737035432156,-500.0,0.00019178,2]
[349203321,1737035432165,-500.0,0.00019178,2]
[349203322,1737035432175,-500.0,0.00019178,2]
[349203324,1737035432185,-500.0,0.00019178,2]
[349203326,1737035432195,-500.0,0.00019178,2]
[349203328,1737035432204,-172.12,0.00019178,2]
[349203330,1737035432214,-163.888221,0.00019178,2]
[349203332,1737035432225,-151.67,0.00019178,2]
[349203334,1737035432234,-151.18091483,0.00019215,2]